[Event "45th FIDE Olympiad 2024"]
[Site "Budapest"]
[Date "2024.09.14"]
[Round "4.88"]
[White "Asllani, Muhamet"]
[Black "Kozul, Zdenko"]
[Result "0-1"]
[ECO "B33"]
[WhiteElo "2191"]
[BlackElo "2515"]
[Annotator "ChessBase"]
[PlyCount "56"]
[EventDate "2024.09.05"]
[EventType "team-tourn"]
[EventCountry "HUN"]
[SourceTitle "playchess.com"]
[Source "ChessBase"]
[SourceQuality "1"]
[WhiteTeam "Kosovo"]
[BlackTeam "Croatia"]
[WhiteTeamCountry "KOS"]
[BlackTeamCountry "CRO"]
[TimeControl "40/5400+30:1800+30"]

1. e4 c5 2. Nf3 Nc6 3. d4 cxd4 4. Nxd4 Qb6 5. Nb3 Nf6 6. Nc3 e6 7. Be3 Qc7 8. a3 a6 9. f4 d6 10. Be2 b5 11. Bf3 Rb8 12. Qd2 Be7 13. g4 Nd7 14. Nd4 Nxd4 15. Bxd4 O-O 16. g5 Bb7 17. Rf1 e5 18. Be3 exf4 19. Bxf4 Ne5 20. Bxe5 dxe5 21. Nd5 Bxd5 22. exd5 e4 23. d6 Bxd6 24. Bxe4 b4 25. a4 Qe7 26. O-O-O Qxe4 27. Qxd6 b3 28. Rd3 Qe2 0-1

[Event "45th FIDE Olympiad 2024"]
[Site "Budapest"]
[Date "2024.09.14"]
[Round "4.88"]
[White "Antonio, Kyell-Jean"]
[Black "Smith, Michael"]
[Result "1-0"]
[ECO "C00"]
[WhiteElo "1763"]
[BlackElo "1718"]
[PlyCount "69"]
[EventDate "2024.09.05"]
[EventType "team-tourn"]
[EventCountry "HUN"]
[WhiteTeam "Aruba"]
[BlackTeam "US Virgin Islands"]
[WhiteTeamCountry "ARN"]
[TimeControl "40/5400+30:1800+30"]

1. e4 e6 2. d3 d5 3. Nd2 Bd6 4. g3 d4 5. Ngf3 e5 6. Bg2 Nf6 7. O-O b5 8. Nxd4 Bg4 9. N4f3 c5 10. h3 Bd7 11. Nh4 O-O 12. Nf5 Be6 13. f4 Nc6 14. Nxd6 Qxd6 15. f5 Bd7 16. g4 h6 17. h4 Nh7 18. Nf3 Nd4 19. g5 hxg5 20. Nxg5 Nf6 21. c3 Nc6 22. Qf3 b4 23. Nh3 Rab8 24. Rf2 Bc8 25. Bf1 a5 26. Rg2 Kh8 27. Be2 Rg8 28. Qe3 Ba6 29. Nf2 Ne7 30. Qg5 Bb7 31. Ng4 Nh7 32. Qh5 g6 33. fxg6 Qxg6 34. Qxe5+ Nf6 35. Qxe7 1-0

[Event "45th FIDE Olympiad 2024"]
[Site "Budapest"]
[Date "2024.09.14"]
[Round "4.89"]
[White "Atabayev, Saparmyrat"]
[Black "Dragnev, Valentin"]
[Result "1/2-1/2"]
[ECO "C88"]
[WhiteElo "2516"]
[BlackElo "2556"]
[Annotator "TA"]
[PlyCount "94"]
[EventDate "2024.09.05"]
[EventType "team-tourn"]
[EventCountry "HUN"]
[SourceTitle "playchess.com"]
[Source "ChessBase"]
[SourceQuality "1"]
[WhiteTeam "Turkmenistan"]
[BlackTeam "Austria"]
[WhiteTeamCountry "TKM"]
[BlackTeamCountry "AUT"]
[TimeControl "40/5400+30:1800+30"]

{[%evp 29,94,-10,0,0,0,-7,0,0,0,-24,-23,-106,-102,-112,-90,-82,-44,-93,-91,-76,0,-33,-25,-49,0,-68,-67,-90,-68,-60,-84,-77,-70,-102,-87,-82,0,-90,-62,-71,-13,-48,-31,-45,-38,-33,-40,-35,-33,-27,-18,-36,-27,-24,-11,-19,-6,-11,-5,-28,0,-10,0,-33,0,0,0]} 1. e4 e5 2. Nf3 Nc6 3. Bb5 a6 4. Ba4 Nf6 5. O-O Be7 6. Re1 b5 7. Bb3 O-O 8. h3 Bb7 9. d3 Na5 {9...d5 is the modern continuation. C88: Closed Ruy Lopez: Anti-Marshall Systems.} 10. Nbd2 d6 11. Nf1 Re8 12. Bd2 Nxb3 13. axb3 h6 $146 ({Predecessor:} 13... Nd7 14. Ng3 g6 15. Bh6 Bf6 16. Qd2 c6 17. b4 Qe7 18. b3 Qd8 19. Nh2 Bg7 20. Ng4 {1-0 Hofmann,A (1745)-Oehrlein,S (1641) Unterfranken-ch M2 56th 2005 (6)}) 14. Ng3 Bf8 15. c4 g6 16. Qc1 Kh7 17. b4 Bg7 18. b3 Nd7 19. Nh2 Nf8 20. f4 (20. Qc2 $11 {keeps the balance.}) 20... exf4 $17 21. Bxf4 Ne6 22. Be3 Nd4 23. Qd1 (23. Ra2 $15 {deserves consideration.}) 23... f5 $17 24. Ra2 Be5 (24... fxe4 $17 25. dxe4 Nc6) 25. Ne2 Nc6 26. Qd2 Bg7 (26... fxe4 $15 27. dxe4 Bg7) 27. Rf1 (27. exf5 $11 gxf5 28. Nf1) 27... fxe4 $15 28. d4 Qe7 29. Nf4 Rf8 30. Raa1 Rae8 31. Rac1 Nd8 (31... bxc4 {is more complex.} 32. bxc4 Nxd4 33. Bxd4 e3) 32. d5 Bc8 (32... Rf7 $17) 33. Qc2 (33. cxb5 $11 axb5 34. Rc2) 33... Rf7 (33... Bd7 {looks sharper.} 34. Rf2 Nf7 35. cxb5 axb5 36. Nf3 exf3 37. Nxg6 Qxe3 38. Nxf8+ Kg8) 34. Ne2 Ref8 (34... bxc4 $17 35. bxc4 h5) 35. Rxf7 Rxf7 36. Rf1 Bd7 37. Qa2 bxc4 38. bxc4 Bc8 39. Qc2 Be5 40. Qc1 Rxf1+ 41. Nxf1 Nf7 42. Nd4 Bg7 43. Qc2 Qh4 44. Bf2 Qe7 45. Be3 Qh4 46. Bf2 Qe7 47. Be3 Qh4 1/2-1/2

[Event "45th FIDE Olympiad 2024"]
[Site "Budapest"]
[Date "2024.09.14"]
[Round "4.89"]
[White "Christopher, Art"]
[Black "Bodin-Hullin, Thomas"]
[Result "0-1"]
[ECO "D85"]
[WhiteElo "1779"]
[BlackElo "1855"]
[PlyCount "56"]
[EventDate "2024.09.05"]
[EventType "team-tourn"]
[EventCountry "HUN"]
[WhiteTeam "British Virgin Islands"]
[BlackTeam "Senegal"]
[WhiteTeamCountry "IVB"]
[BlackTeamCountry "SEN"]
[TimeControl "40/5400+30:1800+30"]

1. d4 Nf6 2. c4 g6 3. Nc3 d5 4. cxd5 Nxd5 5. e4 Nxc3 6. bxc3 Bg7 7. f4 O-O 8. Nf3 c5 9. Bc4 Nc6 10. Be3 Bg4 11. e5 cxd4 12. cxd4 Bxf3 13. gxf3 e6 14. Ke2 Ne7 15. Qb3 Rb8 16. a4 a6 17. Rhd1 b5 18. axb5 axb5 19. Bd3 Nd5 20. Be4 Nxe3 21. Kxe3 Qh4 22. Rg1 h5 23. Bxg6 fxg6 24. Qxe6+ Kh8 25. Qxg6 Qxf4+ 26. Ke2 Qxf3+ 27. Ke1 Qf2+ 28. Kd1 Qxd4+ {0-} 0-1

[Event "45th FIDE Olympiad 2024"]
[Site "Budapest"]
[Date "2024.09.14"]
[Round "4.90"]
[White "Ragger, Markus"]
[Black "Annaberdiyev, Meylis"]
[Result "1/2-1/2"]
[ECO "D35"]
[WhiteElo "2601"]
[BlackElo "2431"]
[Annotator "TA"]
[PlyCount "207"]
[EventDate "2024.09.05"]
[EventType "team-tourn"]
[EventCountry "HUN"]
[SourceTitle "playchess.com"]
[Source "ChessBase"]
[SourceQuality "1"]
[WhiteTeam "Austria"]
[BlackTeam "Turkmenistan"]
[WhiteTeamCountry "AUT"]
[BlackTeamCountry "TKM"]
[TimeControl "40/5400+30:1800+30"]

{[%evp 13,207,20,19,18,18,18,27,14,24,22,25,25,20,23,25,14,27,28,29,34,29,24,24,27,30,49,40,35,47,22,27,25,96,100,172,170,144,114,107,90,91,78,85,91,79,75,75,85,72,59,61,57,70,38,73,78,64,76,53,12,14,16,17,17,19,18,22,17,18,18,51,27,50,25,17,8,8,8,16,19,18,16,22,8,6,0,0,0,8,5,16,16,16,8,8,8,14,0,6,0,0,0,0,0,0,0,0,0,17,17,15,0,0,0,6,5,7,0,0,0,0,0,0,0,0,0,0,0,0,0,0,0,0,0,8,8,8,8,8,8,8,0,8,0,9,8,8,0,0,0,8,0,0,0,7,0,0,0,0,0,0,0,0,0,0,0,0,0,0,0,0,0,0,0,0,0,0,0,0,0,0,0,0,0,0,0,0,0,0,0,0,0,0,0,0,0]} 1. d4 Nf6 2. c4 e6 3. Nc3 d5 4. cxd5 exd5 5. Bg5 c6 6. e3 Bd6 7. Bd3 O-O 8. Nge2 Re8 9. Qc2 {[%cal Od3h7] Threatening Bxh7+!} h6 10. Bh4 {White has an edge.} a5 11. h3 Na6 12. a3 {Prevents Nb4.} Nc7 13. O-O Ne6 14. Rad1 Ng5 15. f4 Ne6 16. Ng3 Nf8 17. e4 $36 {[%mdl 2048] White is more active.} dxe4 18. Ngxe4 Be7 19. Bxf6 Bxf6 20. Nxf6+ Qxf6 21. d5 Bd7 22. Ne4 {[%cal Bc3e4,Be4d6,Bd6f5][%mdl 32]} Qh4 (22... Qd4+ $11 23. Rf2 Qa7 (23... cxd5 24. Nd6 $16)) 23. Nd6 $16 Re3 {[#]} (23... cxd5 $16 24. Nxe8 Bxe8) 24. dxc6 $1 $18 (24. Nxb7 cxd5 25. f5 Nh7 $17) 24... bxc6 {[%cal Od7h3]} 25. Bf5 {Black must now prevent Bxd7.} Re7 26. Bxd7 (26. Qc3 {seems wilder.} Rb8 27. Rf2 Nh7 28. Qxa5 Nf6 29. Qa7) 26... Rxd7 27. Qxc6 {White is more active.} Rb8 {[%cal Oh4d8]} 28. Nf5 {[%csl LRd7,LRh4]} Qd8 29. Rxd7 Qxd7 30. Qxd7 Nxd7 $16 {[%cal Bf8d7,Bd7c5,Bc5e6,Be6f4,Bf4d3][%mdl 4128] Endgame. KRN-KRN} 31. Rd1 Nc5 32. Ne7+ Kh7 33. Rd5 Ne6 34. f5 Nf4 35. Rd2 Rb5 36. Kf2 Rb3 37. Nc6 Nd3+ 38. Ke2 Nxb2 39. Nd4 Rb7 40. Rc2 Re7+ 41. Kd2 Rd7 42. Kc3 $1 Na4+ 43. Kd3 Nb6 44. Rc5 {The position is equal.} a4 45. Ra5 h5 46. g4 $1 hxg4 47. hxg4 g5 48. fxg6+ Kxg6 49. Ke4 Re7+ 50. Kf4 Rd7 51. Nf5 Rd3 52. Ra6 Rb3 53. Nd4 Rb1 54. Nf3 Kg7 55. Nd4 Kg6 56. Ra5 Rf1+ 57. Kg3 Rd1 58. Nf3 Rd3 59. Ra6 Rb3 60. Kf4 Kg7 61. Nd4 Rb1 62. Kg5 f6+ 63. Kf4 Rf1+ 64. Kg3 Rg1+ 65. Kf2 Rb1 66. Ra7+ Kg6 67. Kg3 {[#] Threatens to win with Nf5.} Rg1+ 68. Kf3 {Nf5 is the strong threat.} Rf1+ 69. Kg3 {aiming for Nf5.} Rg1+ 70. Kh3 Rh1+ 71. Kg3 Rg1+ 72. Kf4 {Nf5 would now be deadly.} Rf1+ 73. Nf3 Rh1 74. Kg3 {Strongly threatening Nh4+.} Rh7 75. Nh4+ Kh6 76. Nf5+ Kg6 77. Nh4+ Kh6 78. Nf5+ Kg6 79. Ra6 Rb7 80. Kh4 Rh7+ 81. Kg3 Rb7 82. Ra5 Rc7 83. Ra6 Rb7 84. Nd6 Rb8 85. Ne4 Nd5 86. Rxa4 Rb3+ 87. Kf2 Nc3 88. Nxc3 Rxc3 $11 {KR-KR} 89. Ra5 Rb3 90. Kg2 Rc3 91. Kh2 Rb3 92. Kg2 Rc3 93. Kf2 Rb3 94. a4 Ra3 95. Ke2 Rg3 96. Ra8 Kg7 97. a5 Rxg4 98. a6 Ra4 99. Kd3 f5 100. Ke3 Kh7 101. Kf3 Kg7 102. a7 Kh7 103. Rf8 Rxa7 104. Rxf5 {Black escapes into a draw.   Weighted Error Value: White=0.05 (flawless) /Black=0.08 (flawless) .  Mistake:       	---       	Black=2      Inaccurate:     	White=2     	Black=2      OK:         	White=28    	Black=52     Best:        	White=3     	Black=14     Strong:       	White=3     	---} 1/2-1/2

[Event "45th FIDE Olympiad 2024"]
[Site "Budapest"]
[Date "2024.09.14"]
[Round "4.90"]
[White "Lesbros, Bernard"]
[Black "Potter, Simon"]
[Result "1-0"]
[ECO "A53"]
[WhiteElo "1938"]
[BlackElo "1663"]
[PlyCount "45"]
[EventDate "2024.09.05"]
[EventType "team-tourn"]
[EventCountry "HUN"]
[BlackTeam "British Virgin Islands"]
[BlackTeamCountry "IVB"]
[TimeControl "40/5400+30:1800+30"]

1. Nf3 Nf6 2. c4 d6 3. d4 Bg4 4. Qb3 b6 5. g3 Bxf3 6. Qxf3 d5 7. Nc3 c6 8. Bg5 h6 9. Bxf6 gxf6 10. cxd5 Qd6 11. dxc6 Nxc6 12. e3 Rc8 13. Bb5 Kd8 14. O-O Bg7 15. Rac1 e6 16. Ba6 Rb8 17. Nb5 Qd5 18. Qxd5+ exd5 19. Rxc6 Ra8 20. Rfc1 Ke7 21. Rc7+ Kd8 22. Nd6 Rf8 23. Bb5 1-0

[Event "45th FIDE Olympiad 2024"]
[Site "Budapest"]
[Date "2024.09.14"]
[Round "4.91"]
[White "Hommadov, Amanmuhammet"]
[Black "Horvath, Dominik"]
[Result "1/2-1/2"]
[ECO "C60"]
[WhiteElo "2181"]
[BlackElo "2559"]
[Annotator "TA"]
[PlyCount "83"]
[EventDate "2024.09.05"]
[EventType "team-tourn"]
[EventCountry "HUN"]
[SourceTitle "playchess.com"]
[Source "ChessBase"]
[SourceQuality "1"]
[WhiteTeam "Turkmenistan"]
[BlackTeam "Austria"]
[WhiteTeamCountry "TKM"]
[BlackTeamCountry "AUT"]
[TimeControl "40/5400+30:1800+30"]

{[%evp 9,83,29,29,16,31,21,16,16,19,0,9,7,7,4,-2,0,12,-14,-7,-12,-14,-9,-12,-10,-10,-11,21,0,0,0,0,0,0,-15,0,0,0,0,0,0,0,0,2,0,0,0,0,0,0,0,0,0,0,0,0,0,0,0,0,0,0,0,0,0,0,0,0,0,0,0,0,0,0,0,8,8]} 1. e4 e5 2. Nf3 Nc6 3. Bb5 {[%cal Bf1b5,Bb5a4,Ba4b3,Bb3d5][%mdl 32]} a6 4. Ba4 Nge7 5. O-O Ng6 6. c3 d5 7. exd5 Qxd5 {The position is equal.} 8. d4 {[%cal Oc3c4]} Bg4 9. Bb3 Bxf3 10. Bxd5 Bxd1 11. Rxd1 O-O-O 12. Bxf7 exd4 13. cxd4 Nxd4 14. Nc3 {[%cal Bb1c3,Bc3d1,Bd1e3][%mdl 32] [#]} Ne2+ $1 {A dynamic duo of knights.} 15. Kf1 Rxd1+ 16. Nxd1 Nxc1 17. Rxc1 Bd6 18. g3 Ne5 19. Be6+ Kb8 20. Ne3 Re8 21. Bd5 Nd3 22. Rc3 Nb4 {[%cal Oe8e3] Threatens to win with ...Rxe3!} (22... Nxb2 $2 {perishes.} 23. Rb3 Be5 24. Rxb7+ Kc8 25. Ra7 $18) 23. Bb3 Be5 24. Rc4 Nd3 {[%cal Oe8d8]} 25. Bc2 $1 Rd8 (25... Nxb2 $2 {is the wrong capture.} 26. Re4 $18) 26. Bxd3 Rxd3 $11 {[%mdl 4096] Endgame. KRB-KRN} 27. Ke2 Rd7 28. b3 b5 29. Rc5 Bd4 30. Rd5 Rxd5 31. Nxd5 {KB-KN} Kb7 32. f4 Kc6 33. Nb4+ Kd6 34. Nxa6 c5 {Prevents Nb4.} 35. a4 bxa4 36. bxa4 Kc6 37. Kd3 {[%cal Oa6b4]} Bg1 (37... Kb6 $5 38. Nb8 $8 Kc7 39. Na6+ Kb6 $11 (39... Kb7 40. Nb4 $14)) 38. Kc4 Bxh2 (38... Kb6 $5 39. Nb8 $8 Bxh2 $11) 39. Nxc5 {[#] Ne4 would now be deadly.} Bxg3 40. Ne6 h5 {Strongly threatening ...h4.} 41. Nxg7 Bxf4 42. Nxh5 {A balanced but interesting game.   Weighted Error Value: White=0.03 (flawless) /Black=0.02 (flawless) .  Inaccurate:     	White=2     	Black=1      OK:         	White=19    	Black=25     Best:        	White=1     	Black=2      Strong:       	White=1     	---} 1/2-1/2

[Event "45th FIDE Olympiad 2024"]
[Site "Budapest"]
[Date "2024.09.14"]
[Round "4.91"]
[White "Samuel, Jhon"]
[Black "Marochkina, Nadezhda Valerevna"]
[Result "0-1"]
[ECO "D11"]
[WhiteElo "1545"]
[BlackElo "1792"]
[PlyCount "98"]
[EventDate "2024.09.05"]
[EventType "team-tourn"]
[EventCountry "HUN"]
[WhiteTeam "British Virgin Islands"]
[BlackTeam "Senegal"]
[WhiteTeamCountry "IVB"]
[BlackTeamCountry "SEN"]
[TimeControl "40/5400+30:1800+30"]

1. d4 d5 2. c4 Nf6 3. Nc3 c6 4. e3 Bg4 5. Nf3 e6 6. cxd5 exd5 7. Be2 Bd6 8. h3 Bh5 9. Ne5 Bxe2 10. Qxe2 Nbd7 11. f4 Ne4 12. Nxe4 dxe4 13. O-O Nf6 14. a4 O-O 15. b3 Nd5 16. Bb2 f5 17. Ba3 Bxa3 18. Rxa3 Qe7 19. Raa1 Qb4 20. Qc4 Rad8 21. Qxb4 Nxb4 22. Rac1 Rfe8 23. Rfd1 Rd5 24. Rc5 Red8 25. Rxd5 Nxd5 26. Kf2 Kf8 27. Ke2 Nc3+ 28. Kd2 Nxd1 29. Kxd1 c5 30. d5 Rxd5+ 31. Kc2 g5 32. g3 Ke7 33. Kc1 gxf4 34. gxf4 Rd6 35. Kc2 Rh6 36. h4 Rxh4 37. Kd2 Rh2+ 38. Kc1 h5 39. Nc4 b6 40. Kd1 h4 41. Ke1 Rc2 42. Kf1 Rc3 43. Kf2 Rxb3 44. Ne5 Rb2+ 45. Kf1 Ke6 46. Nc4 Rb4 47. Ne5 Rxa4 48. Kg2 Ra3 49. Nc4 Rc3 {0-} 0-1

[Event "45th FIDE Olympiad 2024"]
[Site "Budapest"]
[Date "2024.09.14"]
[Round "4.92"]
[White "Baidetskyi, Valentin"]
[Black "Shirliyev, Allayar"]
[Result "1-0"]
[ECO "C24"]
[WhiteElo "2512"]
[BlackElo "2200"]
[Annotator "ChessBase"]
[PlyCount "107"]
[EventDate "2024.09.05"]
[EventType "team-tourn"]
[EventCountry "HUN"]
[SourceTitle "playchess.com"]
[Source "ChessBase"]
[SourceQuality "1"]
[WhiteTeam "Austria"]
[BlackTeam "Turkmenistan"]
[WhiteTeamCountry "AUT"]
[BlackTeamCountry "TKM"]
[TimeControl "40/5400+30:1800+30"]

1. e4 e5 2. Nf3 Nc6 3. Bc4 Nf6 4. d3 d5 5. exd5 Nxd5 6. O-O Nb6 7. Bb5 Bd6 8. Bxc6+ bxc6 9. Nxe5 Bxe5 10. Re1 Qe7 11. f4 Bd4+ 12. Kh1 Be6 13. f5 O-O 14. fxe6 fxe6 15. Nd2 Nd5 16. Nf3 Bc5 17. d4 Bb4 18. c3 Nxc3 19. bxc3 Bxc3 20. Re3 Bxa1 21. Ba3 Rxf3 22. Bxe7 Rxe3 23. Qxa1 Rb8 24. h3 e5 25. dxe5 Re8 26. Bc5 R3xe5 27. Qc3 a6 28. Bd4 Rg5 29. Qxc6 Re1+ 30. Kh2 Rg6 31. Qxc7 h6 32. Qc3 Ree6 33. a4 Kh8 34. Qf3 Rd6 35. Qf4 Rd5 36. Qe4 Rdd6 37. a5 Rg5 38. h4 Rgg6 39. Be5 Rc6 40. h5 Rge6 41. Qd5 Kh7 42. Kg3 Rf6 43. Bxf6 Rxf6 44. Qd8 Rc6 45. Qb6 Rf6 46. Qxf6 gxf6 47. Kf4 Kg7 48. Kf5 Kf7 49. g4 Ke7 50. Kg6 Ke6 51. Kxh6 f5 52. gxf5+ Kf6 53. Kh7 Kf7 54. h6 1-0

[Event "45th FIDE Olympiad 2024"]
[Site "Budapest"]
[Date "2024.09.14"]
[Round "4.93"]
[White "Zambrana, Osvaldo"]
[Black "Peralta, Fernando"]
[Result "0-1"]
[ECO "C07"]
[WhiteElo "2405"]
[BlackElo "2558"]
[Annotator "TA"]
[PlyCount "54"]
[EventDate "2024.09.05"]
[EventType "team-tourn"]
[EventCountry "HUN"]
[SourceTitle "playchess.com"]
[Source "ChessBase"]
[SourceQuality "1"]
[WhiteTeam "Bolivia"]
[BlackTeam "Argentina"]
[WhiteTeamCountry "BOL"]
[BlackTeamCountry "ARG"]
[TimeControl "40/5400+30:1800+30"]

{[%evp 14,54,15,12,12,21,16,8,16,0,3,0,0,0,0,-33,-32,-44,-41,-80,-70,-179,-182,-271,-256,-433,-429,-943,-940,-1227,-1220,-1184,-1188,-1509,-1316,-983,-968,-1516,-1431,-1182,-992,-29993,-29994]} 1. e4 e6 2. d4 d5 3. Nd2 c5 4. Ngf3 cxd4 5. exd5 Qxd5 6. Bc4 Qd8 7. O-O Nc6 8. Nb3 a6 9. Nbxd4 Nxd4 10. Nxd4 Qc7 {Dodges Bf4. The position is equal.} 11. Qe2 Bd6 12. Kh1 Ne7 {[%cal Oe8g8] Prevents Nf5.} 13. Bb3 O-O 14. Nf3 b5 15. Ng5 Bb7 {[%cal Oh7h6]} (15... Bxh2 $6 16. Qh5 (16. Qe4 Ng6 $17) 16... h6 17. Qxh2 $11) 16. Qd3 {[%csl Gg5][%cal Rd3h7]} Ng6 {[%cal Oa8d8]} ({And not} 16... Bxh2 17. Qxh7#) 17. h4 Bf4 $19 ({Not} 17... Nxh4 18. Qxh7#) 18. Rg1 (18. f3 {was necessary.}) 18... Rad8 $40 {[%mdl 128] Black attacks with force.} ({Inferior is} 18... Nxh4 19. Qxh7#) 19. Qh3 (19. Qc3) 19... Bxc1 20. Raxc1 (20. Rgxc1 $142 Nf4 21. Qg3 Bxg2+ 22. Kh2) 20... Rd4 21. h5 Rh4 22. hxg6 Qf4 {[%cal Of4g5]} 23. gxf7+ Rxf7 {( -> ...Rf6)} 24. Bxe6 Qxg5 25. f3 Rxh3+ 26. Bxh3 {[#]} Rxf3 $1 {[%cal Rf3h3][%mdl 512]} 27. Be6+ {[#]} (27. gxf3 Bxf3+) 27... Rf7 $1 {Weighted Error Value: White=1.27/Black=0.11 (very precise) .  Mistake:       	White=4     	---        Inaccurate:     	White=3     	---        OK:         	White=2     	Black=6      Best:        	---       	Black=3} 0-1

[Event "45th FIDE Olympiad 2024"]
[Site "Budapest"]
[Date "2024.09.14"]
[Round "4.94"]
[White "Krysa, Leandro"]
[Black "Gemy, Jose Daniel"]
[Result "1/2-1/2"]
[ECO "A17"]
[WhiteElo "2495"]
[BlackElo "2315"]
[Annotator "ChessBase"]
[PlyCount "112"]
[EventDate "2024.09.05"]
[EventType "team-tourn"]
[EventCountry "HUN"]
[SourceTitle "playchess.com"]
[Source "ChessBase"]
[SourceQuality "1"]
[WhiteTeam "Argentina"]
[BlackTeam "Bolivia"]
[WhiteTeamCountry "ARG"]
[BlackTeamCountry "BOL"]
[TimeControl "40/5400+30:1800+30"]

1. c4 Nf6 2. Nc3 e6 3. Nf3 b6 4. e4 Bb7 5. Qe2 e5 6. Nxe5 Qe7 7. d4 d6 8. Nd3 Nxe4 9. Nd5 Bxd5 10. cxd5 Nf6 11. Bg5 Qxe2+ 12. Bxe2 Nxd5 13. Bf3 c6 14. Bxd5 cxd5 15. Nb4 Kd7 16. Rc1 h6 17. Be3 Be7 18. Kd2 Bd8 19. Rc2 b5 20. Kd3 Ba5 21. Nxd5 Nc6 22. Rhc1 Rhc8 23. g4 Ke6 24. Nf4+ Kd7 25. Nd5 Bd8 26. f4 Ne7 27. Rxc8 Rxc8 28. Nxe7 Rxc1 29. Bxc1 Bxe7 30. d5 g6 31. Ke4 h5 32. h3 hxg4 33. hxg4 f6 34. Be3 a6 35. f5 g5 36. Bb6 Bd8 37. Bd4 Kc7 38. Kd3 Kd7 39. Kc3 Kc7 40. Kb4 Kb7 41. a4 bxa4 42. Kxa4 Be7 43. Be3 Bd8 44. Bd2 Be7 45. Ba5 Ka7 46. b4 Kb7 47. b5 axb5+ 48. Kxb5 Bf8 49. Bd8 Bg7 50. Bb6 Bf8 51. Bd8 Bg7 52. Ba5 Bf8 53. Bc3 Be7 54. Bd4 Bd8 55. Bc3 Be7 56. Bd4 Bd8 1/2-1/2

[Event "45th FIDE Olympiad 2024"]
[Site "Budapest"]
[Date "2024.09.14"]
[Round "4.94"]
[White "Senglek, Khonsavanh"]
[Black "Winston Gerald, Mansfield Thomas"]
[Result "1/2-1/2"]
[ECO "B07"]
[WhiteElo "1591"]
[BlackElo "1950"]
[PlyCount "128"]
[EventDate "2024.09.05"]
[EventType "team-tourn"]
[EventCountry "HUN"]
[WhiteTeam "Laos"]
[BlackTeam "Sierra Leone"]
[WhiteTeamCountry "LAO"]
[BlackTeamCountry "SIE"]
[TimeControl "40/5400+30:1800+30"]

1. e4 d6 2. d4 Nf6 3. Bd3 c6 4. c3 Qc7 5. Nf3 Bg4 6. Nbd2 e5 7. h3 Bh5 8. Qb3 Nbd7 9. Nh4 Bg6 10. Nxg6 hxg6 11. Nf3 Qb6 12. Be3 Qxb3 13. axb3 a6 14. Ke2 Be7 15. Ra5 Bd8 16. Ra3 O-O 17. Rd1 Bc7 18. Nh4 Rae8 19. f3 d5 20. dxe5 Bxe5 21. f4 Bd6 22. Ra4 dxe4 23. Bxa6 Bc5 24. Bxb7 Bxe3 25. Kxe3 Nc5 26. Bxc6 Nxa4 27. bxa4 Rb8 28. Rd2 Rfd8 29. Rxd8+ Rxd8 30. Bb5 Rd1 31. a5 Rd5 32. c4 Rd3+ 33. Ke2 Rb3 34. a6 Rxb2+ 35. Ke3 Kf8 36. Bc6 Ra2 37. Bb7 Ke7 38. Kd4 Kd6 39. c5+ Kc7 40. g4 Ra4+ 41. Ke3 Ra3+ 42. Kd4 e3 43. Bf3 Rxa6 44. Kxe3 Ra3+ 45. Kd4 Ra4+ 46. Ke3 Nd7 47. c6 Nb6 48. Ng2 Nc4+ 49. Kf2 Ra2+ 50. Ke1 Ra1+ 51. Kf2 Na5 52. Bd5 f6 53. Nh4 Nxc6 54. Bxc6 Kxc6 55. Nxg6 Ra3 56. Kg2 Kd6 57. Nh4 Ke6 58. Nf3 Kd5 59. Nh4 Ke4 60. f5 Kf4 61. Ng6+ Kg5 62. Kh2 Re3 63. Kg2 Ra3 64. Kh2 Rb3 1/2-1/2